[Event "3rd HoliCup Lake City 2019"]
[Site "Udaipur"]
[Date "2019.03.29"]
[Round "4.8"]
[White "Sharma, Harsh Yogesh"]
[Black "Pandey, Srishti"]
[Result "0-1"]
[ECO "A05"]
[WhiteElo "1582"]
[BlackElo "2020"]
[Annotator "NA"]
[PlyCount "98"]
[EventDate "2019.??.??"]
[EventCountry "IND"]
[SourceTitle "playchess.com"]
[Source "ChessBase"]
[SourceQuality "1"]
[TimeControl "5400+30"]

1. Nf3 {[%emt 0:00:05]} Nf6 {[%emt 0:00:15]} 2. g3 {[%emt 0:01:06]} b5 {[%emt 0:01:46]} 3. Bg2 {[%emt 0:00:23]} Bb7 {[%emt 0:00:08]} 4. O-O {[%emt 0:00:11]} e6 {[%emt 0:00:24]} 5. d4 {[%emt 0:01:31]} Be7 {[%emt 0:00:28]} 6. b3 {[%emt 0:03:51] A46: 1 d4 Nf6 2 Nf3 e6: Torre, London and Colle Systems} (6. Bg5 d5 7. Nbd2 Nbd7 8. c3 c5 9. a4 a6 10. dxc5 Nxc5 11. axb5 axb5 12. Rxa8 Bxa8 13. Nd4 Qb6 14. e3 {½-½ (38) Kovacevic,B (2497)-Lenic,L (2657) Slovenia 2018}) 6... O-O {[%emt 0:05:26]} 7. Bb2 {[%emt 0:02:11]} d6 {[%emt 0:04:02]} 8. Nbd2 {[%emt 0:01:29]} Nbd7 {[%emt 0:02:02]} 9. c4 {[%emt 0:00:19]} a6 {[%emt 0:04:12]} 10. Re1 {[%emt 0:03:47]} c5 {[%emt 0:02:09]} 11. e4 $146 {[%emt 0:01:12]} ({Predecessor:} 11. Nh4 Bxg2 12. Nxg2 Qb6 13. e3 d5 14. cxd5 Nxd5 15. dxc5 Nxc5 {1-0 (69) Marson,J (2055)-Mameli,G (2015) Cagliari 2018}) 11... cxd4 {[%emt 0:06:56]} 12. Nxd4 {[%emt 0:00:53]} Nc5 {[%emt 0:05:05]} 13. cxb5 {[%emt 0:02:24]} axb5 {[%emt 0:03:48]} 14. e5 {[%emt 0:11:30]} Nd5 {[%emt 0:18:08]} 15. exd6 {[%emt 0:02:13]} Bf6 {[%emt 0:04:35]} 16. Ne4 {[%emt 0:02:03]} Nxe4 {[%emt 0:01:14]} 17. Bxe4 {[%emt 0:00:13]} Qxd6 {[%emt 0:02:40]} 18. Nxb5 {[%emt 0:02:27]} Qb6 {[%emt 0:00:19]} 19. Bxf6 {[%emt 0:01:27]} Nxf6 {[%emt 0:00:02]} 20. Bxb7 {[%emt 0:01:01]} Qxb7 {[%emt 0:00:04]} 21. a4 {[%emt 0:00:43]} Rfd8 {[%emt 0:04:26]} 22. Qe2 {[%emt 0:01:32]} Nd5 {[%emt 0:01:43]} 23. Rac1 {[%emt 0:01:11]} Qe7 {[%emt 0:01:57]} 24. Rc4 {[%emt 0:01:00]} h6 {[%emt 0:01:24]} 25. Rec1 {[%emt 0:01:03]} Qg5 {[%emt 0:02:58]} 26. Nc7 {[%emt 0:06:11]} Rab8 {[%emt 0:02:44]} 27. Qf3 {[%emt 0:01:47]} Nb4 {[%emt 0:03:46]} 28. R1c3 {[%emt 0:01:17]} Qd2 {[%emt 0:01:46]} 29. Nb5 {[%emt 0:00:35]} Nd3 {[%emt 0:02:44]} 30. Rc7 Ne5 {[%emt 0:00:42]} 31. Qe4 {[%emt 0:04:17]} Nd3 {[%emt 0:02:01]} 32. Qf3 $11 {[%emt 0:00:40]} f5 {[%emt 0:04:13]} 33. Rc2 {[%emt 0:11:19]} Qe1+ {[%emt 0:00:42]} 34. Kg2 {[%emt 0:00:13]} Qe5 {[%emt 0:00:43]} 35. Qe2 {[%emt 0:09:52]} Qd5+ {[%emt 0:00:26]} 36. Kg1 {[%emt 0:00:31]} Qxb3 {[%emt 0:01:02]} 37. Rd2 {[%emt 0:04:22]} Qd5 {[%emt 0:04:20]} 38. Rcc2 {[%emt 0:02:02]} e5 {[%emt 0:01:00]} 39. Nc7 {[%emt 0:00:49]} Qd6 {[%emt 0:00:34]} 40. Ne6 {[%emt 0:02:12]} Rb1+ {[%emt 0:00:58]} 41. Kg2 {[%emt 0:00:55]} Qd5+ {[%emt 0:01:55]} 42. Kh3 {[%emt 0:01:41]} Rg1 {[%emt 0:03:26]} 43. f3 {[%emt 0:00:43]} Qxe6 {[%emt 0:01:14]} 44. Rxd3 {[%emt 0:00:10]} Re8 {[%emt 0:00:38]} 45. Rd1 {[%emt 0:01:06]} f4+ {[%emt 0:00:35]} 46. g4 {[%emt 0:00:23]} Rxd1 {[%emt 0:00:03]} 47. Qxd1 {[%emt 0:00:08]} h5 {[%emt 0:00:39]} 48. Qg1 {[%emt 0:04:04]} e4 {[%emt 0:00:43]} 49. fxe4 {[%emt 0:00:41]} Qb3+ {[%emt 0:00:12]} 0-1

[Event "3rd HoliCup Lake City 2019"]
[Site "Udaipur"]
[Date "2019.03.29"]
[Round "4.9"]
[White "Arun, Rathi"]
[Black "Bhogal, Rupesh"]
[Result "1-0"]
[ECO "A04"]
[WhiteElo "1939"]
[BlackElo "1748"]
[Annotator "NA"]
[PlyCount "115"]
[EventDate "2019.??.??"]
[EventCountry "IND"]
[SourceTitle "playchess.com"]
[Source "ChessBase"]
[SourceQuality "1"]
[TimeControl "5400+30"]

1. Nf3 {[%emt 0:01:17]} d6 {[%emt 0:00:00]} 2. d4 {[%emt 0:00:33]} Nf6 {[%emt 0:00:00]} 3. g3 {[%emt 0:00:21]} g6 {[%emt 0:00:19]} 4. b3 {[%emt 0:01:53]} Bg7 {[%emt 0:00:04]} 5. Bb2 {[%emt 0:00:05]} O-O {[%emt 0:01:00]} 6. Bg2 {[%emt 0:00:03]} Nbd7 {[%emt 0:01:05]} 7. O-O {[%emt 0:00:22]} Re8 {[%emt 0:04:04]} 8. Nbd2 {[%emt 0:07:50]} e5 {[%emt 0:01:17] A49: 1 d4 Nf6 2 Nf3 g6 3 g3: Anti-King's Indian systems} 9. dxe5 {[%emt 0:00:34]} dxe5 {[%emt 0:00:46]} 10. e4 {[%emt 0:00:47]} Nh5 {[%emt 0:01:42]} (10... b6 11. Nc4 Bb7 12. Nfd2 Nc5 13. Re1 Nfd7 14. a4 a5 15. Nf1 Ne6 16. Nfe3 Ndc5 17. Bxe5 Bxe4 18. Nd5 Bxe5 19. Nxe5 {1-0 (75) Mareco,S (2644)-Krysa,L (2545) Buenos Aires 2017}) 11. a4 $146 {[%emt 0:08:24]} ({Predecessor:} 11. Nc4 Qe7 12. a4 f6 13. Ne3 Nf8 14. Nd5 Qf7 15. Nd2 Bh6 16. Nc4 Be6 17. Qe1 Bxd5 18. exd5 {½-½ (26) Talpa,P (1825)-Skaroupka,J (2105) Morava 1997}) 11... Nc5 {[%emt 0:05:02]} 12. Qe2 {[%emt 0:05:34]} Bd7 {[%emt 0:04:53]} 13. Nc4 {[%emt 0:07:17]} f6 {[%emt 0:01:54]} 14. Rfd1 {[%emt 0:00:35]} Qc8 {[%emt 0:00:37]} 15. Ba3 {[%emt 0:08:00]} Ne6 {[%emt 0:05:45]} (15... Na6 $142) 16. Rd2 {[%emt 0:03:20]} (16. Qd3 $16 Bc6 17. Na5) 16... Bh6 {[%emt 0:04:10]} 17. Rdd1 {[%emt 0:04:12]} (17. Rd3 $14) 17... Nef4 {[%emt 0:02:52]} 18. gxf4 {[%emt 0:11:07]} Nxf4 {[%emt 0:00:02]} 19. Qf1 {[%emt 0:00:20]} Nxg2 {[%emt 0:08:08]} 20. Rxd7 {[%emt 0:01:39]} Qxd7 {[%emt 0:03:43]} 21. Qxg2 {[%emt 0:00:11]} a6 {[%emt 0:01:27]} 22. a5 {[%emt 0:01:07]} Rad8 {[%emt 0:00:45]} 23. Ne1 {[%emt 0:05:16]} Qc6 {[%emt 0:04:42]} 24. Nd3 {[%emt 0:02:35]} b5 {[%emt 0:07:06]} 25. axb6 {[%emt 0:00:07]} cxb6 {[%emt 0:00:02]} 26. Nb4 {[%emt 0:00:59]} Qe6 {[%emt 0:02:35]} 27. Nd5 {[%emt 0:03:18]} b5 {[%emt 0:04:55]} 28. Na5 $16 {[%emt 0:03:31]} (28. Nc7 $18 Qc6 29. Nxe8 bxc4 30. Nd6 Rxd6 31. Bxd6 Qxd6 32. Qh3 (32. bxc4 Qd4 $18)) 28... Rc8 {[%emt 0:03:01]} 29. c4 {[%emt 0:00:25]} Bd2 {[%emt 0:02:50]} (29... Bf8 $16 30. Bb2 Be7) 30. Bb4 {[%emt 0:03:30]} Bxb4 {[%emt 0:03:03]} 31. Nxb4 {[%emt 0:00:02]} bxc4 {[%emt 0:01:23]} 32. bxc4 {[%emt 0:00:14]} Red8 {[%emt 0:04:12]} 33. Nd5 {[%emt 0:00:11]} Kg7 {[%emt 0:01:23]} 34. Qf3 {[%emt 0:01:49]} Rb8 {[%emt 0:02:31]} 35. c5 {[%emt 0:01:20]} f5 {[%emt 0:06:59]} 36. Ne3 {[%emt 0:00:28]} Rd3 {[%emt 0:06:02]} 37. exf5 {[%emt 0:02:56]} Qf6 {[%emt 0:02:38]} 38. Qe4 {[%emt 0:04:27]} Rd4 {[%emt 0:02:03]} 39. Qc6 {[%emt 0:00:02]} Qg5+ {[%emt 0:01:17]} 40. Qg2 {[%emt 0:00:02]} Qxg2+ {[%emt 0:01:24]} 41. Kxg2 {[%emt 0:00:02]} Rc8 {[%emt 0:00:09]} 42. Rc1 {[%emt 0:00:24]} Kf6 {[%emt 0:01:01]} 43. fxg6 {[%emt 0:00:12]} hxg6 {[%emt 0:00:06]} 44. c6 {[%emt 0:02:13]} Rc7 {[%emt 0:00:38]} 45. Rc5 {[%emt 0:01:11]} Ke6 {[%emt 0:00:27]} 46. Nac4 {[%emt 0:01:58]} a5 {[%emt 0:02:17]} 47. Rxe5+ {[%emt 0:00:40]} Kf7 {[%emt 0:00:29]} 48. Rxa5 {[%emt 0:00:03]} Kg7 {[%emt 0:00:33]} 49. Rc5 {[%emt 0:00:36]} Rd8 {[%emt 0:00:28]} 50. Nd5 {[%emt 0:00:34]} Rxd5 {[%emt 0:00:34]} 51. Rxd5 {[%emt 0:00:02]} Rxc6 {[%emt 0:00:01]} 52. Ne5 {[%emt 0:00:29]} Re6 {[%emt 0:00:26]} 53. f4 {[%emt 0:00:29]} Kh6 {[%emt 0:00:52]} 54. Rd6 {[%emt 0:00:23]} Re8 {[%emt 0:00:37]} 55. Rxg6+ {[%emt 0:00:04]} Kh5 {[%emt 0:00:34]} 56. Rg5+ {[%emt 0:00:02]} Kh6 {[%emt 0:00:13]} 57. Ng4+ {[%emt 0:00:02]} Kh7 {[%emt 0:00:06]} 58. Nf6+ {[%emt 0:00:05]} 1-0

[Event "3rd HoliCup Lake City 2019"]
[Site "Udaipur"]
[Date "2019.03.29"]
[Round "4.10"]
[White "Suvankar, Maity"]
[Black "Aaditya, Dhingra"]
[Result "1/2-1/2"]
[ECO "E04"]
[WhiteElo "1911"]
[BlackElo "1742"]
[Annotator "NA"]
[PlyCount "66"]
[EventDate "2019.??.??"]
[EventCountry "IND"]
[SourceTitle "playchess.com"]
[Source "ChessBase"]
[SourceQuality "1"]
[TimeControl "5400+30"]

1. d4 {[%emt 0:02:54]} d5 {[%emt 0:00:00]} 2. Nf3 {[%emt 0:00:12]} Nf6 {[%emt 0:00:00]} 3. c4 {[%emt 0:00:05]} e6 {[%emt 0:00:00]} 4. g3 {[%emt 0:00:13]} dxc4 {[%emt 0:00:10]} 5. Bg2 {[%emt 0:01:23]} a6 {[%emt 0:00:14]} 6. a4 {[%emt 0:00:18]} Nc6 {[%emt 0:00:54] E04: Open Catalan: 5 Nf3} 7. O-O {[%emt 0:01:17]} Bd6 {[%emt 0:03:32]} (7... Rb8 8. e3 Be7 9. Nfd2 e5 10. Bxc6+ bxc6 11. dxe5 Ng4 12. Nxc4 Qd5 13. Qd4 Bc5 14. Qc3 Bb4 15. Qd4 Bc5 16. Qc3 Bb4 17. Qd4 Bc5 {½-½ (17) Arvola,B (2493)-Nikolaidis,I (2544) Batumi 2018}) 8. Nbd2 {[%emt 0:00:46]} O-O {[%emt 0:00:30]} 9. e4 $146 {[%emt 0:03:09]} ({Predecessor:} 9. Nxc4 Rb8 10. Nxd6 cxd6 11. Bg5 h6 12. Bxf6 Qxf6 13. e3 e5 14. dxe5 dxe5 {½-½ (50) Suita Garceso,N (2072)-Campo Echevarria,J (2076) Banyoles 2018}) 9... Be7 {[%emt 0:04:29]} 10. e5 {[%emt 0:00:13]} Nd5 {[%emt 0:00:02]} 11. Nxc4 {[%emt 0:00:38]} Rb8 {[%emt 0:01:26]} 12. Qe2 {[%emt 0:01:10]} b5 {[%emt 0:01:32]} 13. Ne3 {[%emt 0:01:22]} Ncb4 {[%emt 0:00:37]} 14. axb5 {[%emt 0:02:23]} axb5 {[%emt 0:04:29]} 15. Bd2 {[%emt 0:02:25]} Bb7 {[%emt 0:04:07]} 16. Rfc1 {[%emt 0:01:40]} Nxe3 {[%emt 0:01:55]} 17. Bxe3 {[%emt 0:01:14]} Nd5 {[%emt 0:02:55]} 18. Nd2 {[%emt 0:02:24]} Ba8 {[%emt 0:23:51]} 19. Nb3 {[%emt 0:08:01]} Rb6 $16 {[%emt 0:02:43]} (19... Qd7 $11 {keeps the balance.}) 20. Bd2 {[%emt 0:01:30]} b4 {[%emt 0:00:16]} 21. Ra6 {[%emt 0:01:02]} Qb8 {[%emt 0:01:52]} 22. Na5 {[%emt 0:12:05]} Rxa6 {[%emt 0:07:23]} 23. Qxa6 {[%emt 0:00:07]} c5 {[%emt 0:00:10]} 24. dxc5 {[%emt 0:01:34]} Qxe5 {[%emt 0:00:18]} 25. c6 {[%emt 0:00:27]} Qxb2 {[%emt 0:01:23]} 26. c7 {[%emt 0:00:17]} Nxc7 {[%emt 0:03:30]} 27. Rxc7 {[%emt 0:00:12]} Bd8 {[%emt 0:00:42]} 28. Rd7 {[%emt 0:00:13]} Qa1+ {[%emt 0:00:02]} 29. Bf1 {[%emt 0:00:57]} Qxa5 {[%emt 0:00:37]} 30. Bxb4 {[%emt 0:02:52]} Qxb4 {[%emt 0:02:55]} 31. Qxa8 {[%emt 0:00:07]} Bb6 {[%emt 0:00:40]} 32. Qf3 {[%emt 0:00:18]} h6 {[%emt 0:01:32]} 33. Bd3 {[%emt 0:02:05]} Bd8 {[%emt 0:01:13]} 1/2-1/2

[Event "3rd HoliCup Lake City 2019"]
[Site "Udaipur"]
[Date "2019.03.29"]
[Round "4.11"]
[White "Anchit, Vyas"]
[Black "Garv, Gaur"]
[Result "1/2-1/2"]
[ECO "D53"]
[WhiteElo "1890"]
[BlackElo "1711"]
[Annotator "NA"]
[PlyCount "60"]
[EventDate "2019.??.??"]
[EventCountry "IND"]
[SourceTitle "playchess.com"]
[Source "ChessBase"]
[SourceQuality "1"]
[TimeControl "5400+30"]

1. d4 {[%emt 0:00:00]} d5 {[%emt 0:00:07]} 2. c4 {[%emt 0:00:00]} e6 {[%emt 0:00:10]} 3. Nc3 {[%emt 0:00:00]} Nf6 {[%emt 0:00:34]} 4. Bg5 {[%emt 0:00:00]} Be7 {[%emt 0:00:47]} 5. cxd5 {[%emt 0:00:00]} exd5 {[%emt 0:00:13]} 6. Qc2 {[%emt 0:00:00]} c6 {[%emt 0:01:09]} 7. e3 {[%emt 0:00:01]} h6 {[%emt 0:01:01]} 8. Bh4 {[%emt 0:00:04]} O-O {[%emt 0:00:47] D36: Queen's Gambit Declined: Exchange Variation: Main line (5 Bg5 c6 6 Qc2)} 9. Nf3 {[%emt 0:00:13]} (9. Bd3 Re8 10. Nge2 Nh5 11. Bxe7 Qxe7 12. h3 a5 13. a3 Nd7 14. Na4 Qh4 15. g3 Qd8 16. g4 Nhf6 17. Ng3 Nf8 18. O-O-O {1-0 (67) Caruana,F (2799)-Kramnik,V (2803) Douglas 2017 CBM 181 [Marin,M]}) 9... Qa5 {[%emt 0:03:45]} 10. Bd3 {[%emt 0:01:37]} Na6 {[%emt 0:03:19]} 11. O-O $146 {[%emt 0:12:23]} ({Predecessor:} 11. Qd1 Be6 12. O-O Nb4 13. Bb1 c5 14. dxc5 Qxc5 15. Nd4 Rad8 16. Bg3 Bd6 17. a3 {1-0 (39) Lafuente,P (2435)-Gonzalez Davila,R (2263) Botucatu 2003}) 11... Nb4 {[%emt 0:02:39]} 12. Qe2 {[%emt 0:00:05]} Nxd3 {[%emt 0:00:13]} 13. Qxd3 {[%emt 0:00:03]} Be6 {[%emt 0:15:01]} 14. Ne5 {[%emt 0:05:45]} Rae8 {[%emt 0:09:24]} 15. f4 {[%emt 0:13:05]} Qc7 {[%emt 0:06:43]} 16. Rac1 {[%emt 0:14:35]} Ne4 {[%emt 0:10:33]} 17. f5 {[%emt 0:17:25]} Bxh4 {[%emt 0:07:43]} 18. fxe6 {[%emt 0:00:05]} fxe6 {[%emt 0:02:06]} 19. Nxe4 {[%emt 0:01:04]} dxe4 {[%emt 0:00:35]} 20. Qxe4 {[%emt 0:03:58]} Bf6 {[%emt 0:02:07]} 21. Ng6 {[%emt 0:08:34]} Rf7 $11 {[%emt 0:00:12]} 22. h4 {[%emt 0:05:57]} Qd7 {[%emt 0:03:08]} 23. Rc5 {[%emt 0:01:25]} Bd8 {[%emt 0:04:35]} 24. Rf3 Rf6 25. Rxf6 {[%emt 0:03:50]} Qf7 {[%emt 0:00:37]} 26. h5 Bxf6 {[%emt 0:02:23]} 27. g3 Bg5 28. g4 {[%emt 0:04:14]} Qc7 {[%emt 0:07:50]} 29. Kg2 {[%emt 0:03:04]} Qb6 {[%emt 0:00:56]} 30. b3 {[%emt 0:02:39]} Qb4 {[%emt 0:00:51]} 1/2-1/2

[Event "3rd HoliCup Lake City 2019"]
[Site "Udaipur"]
[Date "2019.03.29"]
[Round "4.12"]
[White "Govind, Prabhu Mah"]
[Black "Sarthak, Rawat"]
[Result "1/2-1/2"]
[ECO "B22"]
[WhiteElo "1558"]
[BlackElo "1883"]
[Annotator "NA"]
[PlyCount "135"]
[EventDate "2019.??.??"]
[EventCountry "IND"]
[SourceTitle "playchess.com"]
[Source "ChessBase"]
[SourceQuality "1"]
[TimeControl "5400+30"]

1. e4 {[%emt 0:00:09]} c5 {[%emt 0:00:00]} 2. c3 {[%emt 0:00:09]} d5 {[%emt 0:00:24]} 3. exd5 {[%emt 0:00:03]} Qxd5 {[%emt 0:00:19]} 4. d4 {[%emt 0:00:07]} cxd4 {[%emt 0:00:45]} 5. cxd4 {[%emt 0:00:40]} Nc6 {[%emt 0:00:59]} 6. Nf3 {[%emt 0:00:23]} Bg4 {[%emt 0:01:07]} 7. Be2 {[%emt 0:00:06]} Nf6 {[%emt 0:00:38]} 8. Nc3 {[%emt 0:00:33] B22: Sicilian: 2 c3} Qd8 {[%emt 0:02:31]} (8... Qa5 9. h3 Bh5 10. O-O e6 11. a3 Bd6 12. g4 Bg6 13. b4 Qd8 14. Bg5 Be7 15. b5 Na5 16. Ne5 Rc8 17. Nxg6 hxg6 18. Qd3 Rxc3 19. Qxc3 {0-1 (32) Buchnicek,P (2335)-Plischki,S (2436) Trebic 2013}) 9. d5 {[%emt 0:01:25]} Bxf3 {[%emt 0:01:12]} 10. Bxf3 {[%emt 0:00:52]} Ne5 {[%emt 0:00:37]} 11. Be2 {[%emt 0:00:34]} g6 {[%emt 0:05:13]} 12. O-O {[%emt 0:01:20]} Bg7 {[%emt 0:02:19]} 13. Qb3 $146 {[%emt 0:00:59]} ({Predecessor:} 13. Bf4 Ned7 14. Nb5 O-O 15. Bc7 Qe8 {1-0 (32) Pachon,A (2060)-Guerra Verano,D (1636) Medellin 2014}) 13... O-O {[%emt 0:09:09]} 14. Qxb7 {[%emt 0:02:47]} Rb8 {[%emt 0:00:25]} 15. Qxa7 {[%emt 0:00:45]} Nxd5 {[%emt 0:00:23]} 16. Qa3 {[%emt 0:29:19]} Nb4 {[%emt 0:05:35] [#]} (16... Nc6 $11) 17. Rd1 $1 {[%emt 0:06:46]} Qc7 {[%emt 0:07:20] [#]} 18. Qa4 $1 {[%emt 0:09:30]} Nec6 $18 {[%emt 0:03:02]} (18... Nbc6 $16 {was worth a try.} 19. Bb5 Rfd8) 19. Be3 {[%emt 0:01:36]} Ra8 {[%emt 0:05:03]} 20. Qb3 {[%emt 0:01:28]} Rfb8 {[%emt 0:01:49]} 21. Nb5 {[%emt 0:01:54]} Qe5 {[%emt 0:02:19]} 22. a3 {[%emt 0:01:47]} Qxb2 {[%emt 0:18:43]} 23. Qxb2 {[%emt 0:08:00]} Bxb2 {[%emt 0:00:05]} 24. Rab1 {[%emt 0:01:12]} Bxa3 {[%emt 0:00:05]} 25. Rb3 {[%emt 0:01:14]} Nc2 {[%emt 0:00:11]} 26. Bf3 {[%emt 0:06:01]} Ra6 {[%emt 0:11:35]} 27. Nxa3 {[%emt 0:02:46]} Rxb3 {[%emt 0:01:16]} 28. Nxc2 {[%emt 0:01:12]} Rb8 {[%emt 0:00:56]} 29. g3 {[%emt 0:02:28]} Ne5 {[%emt 0:00:45]} 30. Bg2 {[%emt 0:07:36]} Ng4 {[%emt 0:01:02]} 31. Bf4 {[%emt 0:03:55]} e5 {[%emt 0:01:45]} 32. Be3 {[%emt 0:05:21]} Rb2 {[%emt 0:02:20]} 33. Bf3 {[%emt 0:00:45]} Nxe3 {[%emt 0:01:35]} 34. Nxe3 {[%emt 0:00:10]} Rf6 {[%emt 0:01:08]} 35. Nc4 {[%emt 0:01:13]} Rb5 {[%emt 0:02:02]} 36. Kg2 {[%emt 0:00:47]} Kg7 {[%emt 0:04:40]} 37. Rd7 {[%emt 0:00:39]} Rb8 {[%emt 0:05:03]} 38. Nxe5 {[%emt 0:00:27]} Re8 {[%emt 0:00:10]} 39. Nd3 {[%emt 0:00:20]} Rfe6 {[%emt 0:00:25]} 40. Nf4 {[%emt 0:01:18]} R6e7 {[%emt 0:00:13]} 41. Rd6 {[%emt 0:00:06]} Rb8 {[%emt 0:00:31]} 42. h4 {[%emt 0:00:07]} h5 {[%emt 0:00:43]} 43. Nh3 {[%emt 0:01:23]} Rb2 {[%emt 0:01:16]} 44. Bc6 {[%emt 0:00:40]} Rb6 {[%emt 0:00:25]} 45. Rd7 {[%emt 0:00:03]} Rxd7 {[%emt 0:00:39]} 46. Bxd7 {[%emt 0:00:01]} Rd6 {[%emt 0:00:26]} 47. Bb5 {[%emt 0:00:05]} f6 {[%emt 0:00:58]} 48. Nf4 {[%emt 0:00:11]} Kh6 {[%emt 0:01:10]} 49. Be2 {[%emt 0:00:14]} Rb6 {[%emt 0:00:45]} 50. Nd5 {[%emt 0:00:45]} Rd6 {[%emt 0:00:29]} 51. Bf3 {[%emt 0:00:15]} g5 {[%emt 0:00:17]} 52. hxg5+ {[%emt 0:01:23]} fxg5 {[%emt 0:01:02]} 53. Be4 {[%emt 0:00:12]} g4 {[%emt 0:00:28]} 54. Ne3 {[%emt 0:01:45]} Kg5 {[%emt 0:00:07]} 55. Bd5 {[%emt 0:00:31]} Rf6 {[%emt 0:00:34]} 56. Bc4 {[%emt 0:00:10]} h4 {[%emt 0:00:59]} 57. gxh4+ {[%emt 0:00:06]} Kxh4 {[%emt 0:00:06]} 58. Be2 {[%emt 0:00:04]} Rf4 {[%emt 0:00:07]} 59. Nf1 {[%emt 0:00:39]} Rb4 {[%emt 0:00:48]} 60. Ng3 {[%emt 0:00:24]} Ra4 {[%emt 0:00:24]} 61. Bd3 {[%emt 0:01:09]} Ra3 {[%emt 0:00:24]} 62. Be4 {[%emt 0:00:27]} Ra4 {[%emt 0:01:03]} 63. Bc6 {[%emt 0:00:10]} Ra3 {[%emt 0:00:16]} 64. Bd7 {[%emt 0:00:26]} Ra7 {[%emt 0:00:39]} 65. Be6 {[%emt 0:00:10]} Ra6 {[%emt 0:00:31]} 66. Bc4 {[%emt 0:00:45]} Ra3 {[%emt 0:00:34]} 67. Nf5+ {[%emt 0:00:06]} Kg5 {[%emt 0:00:03]} 68. Ne3 1/2-1/2

[Event "3rd HoliCup Lake City 2019"]
[Site "Udaipur"]
[Date "2019.03.29"]
[Round "4.13"]
[White "Awadh, Chaitanya"]
[Black "Mokashi, Rohit"]
[Result "1-0"]
[ECO "B13"]
[WhiteElo "1882"]
[BlackElo "1615"]
[Annotator "NA RC"]
[PlyCount "31"]
[EventDate "2019.??.??"]
[EventCountry "IND"]
[SourceTitle "playchess.com"]
[Source "ChessBase"]
[SourceQuality "1"]
[TimeControl "5400+30"]

1. e4 {[%emt 0:00:08]} c6 {[%emt 0:00:00]} 2. d4 {[%emt 0:00:20]} d5 {[%emt 0:00:00]} 3. exd5 {[%emt 0:00:09]} cxd5 {[%emt 0:00:05]} 4. Bd3 {[%emt 0:00:06]} Nc6 {[%emt 0:00:22]} 5. c3 {[%emt 0:00:09]} Qc7 {[%emt 0:00:37]} 6. Ne2 {[%emt 0:00:18]} Bg4 {[%emt 0:01:08]} 7. f3 {[%emt 0:00:18]} Bh5 {[%emt 0:00:14]} 8. Bf4 {[%emt 0:01:23]} e5 {[%emt 0:01:54]} 9. dxe5 {[%emt 0:00:11]} Nxe5 {[%emt 0:00:14]} 10. Bb5+ {[%emt 0:00:08]} Ke7 {[%emt 0:02:55]} 11. Qxd5 {[%emt 0:02:18]} f6 {[%emt 0:00:50]} 12. Be3 {[%emt 0:05:58]} Rc8 {[%emt 0:02:25]} 13. Nd4 {[%emt 0:03:03]} Bg6 {[%emt 0:03:17]} 14. O-O {[%emt 0:06:34]} Nh6 {[%emt 0:00:48]} 15. Bxh6 {[%emt 0:01:12]} Qb6 {[%emt 0:04:32]} 16. Be3 {[%emt 0:03:13]} 1-0

[Event "3rd HoliCup Lake City 2019"]
[Site "Udaipur"]
[Date "2019.03.29"]
[Round "4.14"]
[White "Kadam, Rishi R"]
[Black "Shubham"]
[Result "1-0"]
[ECO "B50"]
[WhiteElo "1553"]
[BlackElo "1880"]
[Annotator "NA"]
[PlyCount "85"]
[EventDate "2019.??.??"]
[EventCountry "IND"]
[SourceTitle "playchess.com"]
[Source "ChessBase"]
[SourceQuality "1"]
[TimeControl "5400+30"]

1. e4 {[%emt 0:00:00]} c5 {[%emt 0:02:13]} 2. Nf3 {[%emt 0:00:00]} d6 {[%emt 0:00:31]} 3. c3 {[%emt 0:00:33]} Nf6 {[%emt 0:00:22]} 4. h3 {[%emt 0:00:07]} e6 {[%emt 0:00:54]} 5. Bd3 {[%emt 0:01:26]} Be7 {[%emt 0:00:39] B50: Sicilian: 2...d6, Miscellaneous} (5... d5 6. e5 Nfd7 7. O-O Nc6 8. Re1 Qc7 9. Qe2 Rb8 10. Bc2 b5 11. d3 b4 12. c4 Nb6 13. Nbd2 {1-0 (42) Petrosian,T (2636)-Zhou,J (2636) Martuni 2011 CBM 144 [Nadanian,A]}) 6. Bc2 {[%emt 0:00:09]} O-O {[%emt 0:00:17]} 7. O-O {[%emt 0:00:06]} Qc7 {[%emt 0:00:35]} 8. d3 $146 {[%emt 0:00:35]} ({Predecessor:} 8. Re1 Nbd7 9. d4 e5 10. Nbd2 Re8 11. Nf1 Rb8 12. Ng3 g6 13. Bh6 {1-0 (62) Vera Siguenas,D (2535)-Alboredo,J (2049) Florianopolis 2017}) 8... b6 {[%emt 0:00:50]} 9. Be3 {[%emt 0:02:46]} Bb7 {[%emt 0:00:50]} 10. Nbd2 {[%emt 0:00:29]} Nbd7 {[%emt 0:00:26]} 11. Re1 {[%emt 0:03:24]} Rfe8 {[%emt 0:02:25]} 12. Nf1 {[%emt 0:09:09]} Rad8 {[%emt 0:05:36]} 13. Ng3 {[%emt 0:01:50]} d5 {[%emt 0:00:17]} 14. e5 {[%emt 0:03:26]} Nxe5 {[%emt 0:00:14]} 15. Nxe5 {[%emt 0:00:06]} Qxe5 {[%emt 0:00:04]} 16. Bxc5 {[%emt 0:00:15]} Qc7 {[%emt 0:00:07]} 17. Bxe7 {[%emt 0:00:24]} Rxe7 {[%emt 0:01:26]} 18. d4 {[%emt 0:00:11]} b5 {[%emt 0:00:54]} 19. Qd3 {[%emt 0:03:15]} Qc4 {[%emt 0:05:39]} 20. Qf3 {[%emt 0:12:31]} Rc7 {[%emt 0:02:05]} 21. Bd3 {[%emt 0:00:57]} Qc6 {[%emt 0:01:30]} 22. Nh5 {[%emt 0:01:04]} Nxh5 {[%emt 0:00:29]} 23. Qxh5 {[%emt 0:00:08]} g6 {[%emt 0:00:04]} 24. Qg5 {[%emt 0:00:27]} Rdc8 {[%emt 0:00:46]} 25. h4 {[%emt 0:01:04]} b4 {[%emt 0:01:24]} 26. cxb4 {[%emt 0:20:08]} Qb6 {[%emt 0:04:20]} 27. Qe5 {[%emt 0:00:57]} Qxb4 {[%emt 0:00:53]} 28. h5 {[%emt 0:02:06]} Qd2 {[%emt 0:00:40]} 29. Rad1 {[%emt 0:03:16]} Qh6 {[%emt 0:03:35]} 30. hxg6 {[%emt 0:00:18]} hxg6 {[%emt 0:00:12]} 31. g3 {[%emt 0:03:11]} Qh3 {[%emt 0:01:47]} 32. Qf4 {[%emt 0:01:35]} Kh7 {[%emt 0:03:36]} 33. Rc1 {[%emt 0:06:40]} Qh6 {[%emt 0:02:32]} 34. Qxc7 {[%emt 0:03:02]} Rxc7 {[%emt 0:00:01]} 35. Rc2 Rc6 36. Rxc6 {[%emt 0:00:37]} Qe3 37. Rc7 Qd2 {[%emt 0:01:08]} 38. Re3 {[%emt 0:00:33]} Qxb2 {[%emt 0:02:35]} 39. Rxf7+ {[%emt 0:00:18]} Kg8 {[%emt 0:01:03]} 40. Ref3 {[%emt 0:02:18]} Bc6 {[%emt 0:02:43]} 41. Rf8+ {[%emt 0:01:57]} Kg7 {[%emt 0:00:13]} 42. R3f7+ {[%emt 0:00:14]} Kh6 {[%emt 0:00:02]} 43. Rg8 {[%emt 0:00:29]} 1-0